Cogmind - Beta 17.1 @@@ ROGUE MODE // 2026.09.21 @ 16:59:04 Player: Caluan Result: Destroyed by G-67 Veteran with Plasma Rifle Performance ------------- Evolutions (6) 3000 Regions Visited (7) 1400 Robots Destroyed (62) 310 Value Destroyed (2551) 2551 Prototype IDs (6) 120 Alien Tech Used (0) 0 Bonus (2002) 2002 TOTAL SCORE: 9383 Bonus ------- High Alert Combat Kills 124 Follower Combat Kills 1147 Registered with UFD 300 Met Optimus in HQ 500 Friendly Fire -69 Cogmind --------- Core Integrity 0/1150 Matter 300/300 Energy 98/100 System Corruption 2% Temperature Cool (0) Movement Core (50) Location -4/Factory Parts ------- > --- POWER (1) -------- (None) > --- PROPULSION (4) --- (None) > --- UTILITY (10) ----- (None) > --- WEAPON (4) ------- (None) > --- INVENTORY (5) ---- Heavy Siege Treads Heavy Siege Treads Advanced Datajack Peak State ------------ > --- POWER ------------ Improved Deuterium Engine > --- PROPULSION ------- Light Treads Improved Treads Improved Treads Improved Treads > --- UTILITY ---------- Coolant Injector High-capacity Storage Unit Improved Target Analyzer Improved Transmission Jammer Hardened Light Armor Plating Hacking Suite System Restoration Module Drone Bay > --- WEAPON ----------- Improved KE Penetrator Improved KE Penetrator Improved KE Penetrator Companion Sword > --- INVENTORY -------- Neutrino Core Improved Treads Improved Treads Improved Treads Improved Heat Sink Energy Well High-capacity Matter Pod Insulated Plating A0-MCA's Component Scanner System Restoration Module Gauss Rifle Heavy Machine Gun KE Penetrator KE Penetrator Rocket Launcher Rocket Launcher Improved Plasma Cutter CPS Tube CPS Tube DRS Beacon [Rating: 76] Favorites ----------- Power Improved Deuterium Engine Engine Improved Deuterium Engine Power Core Neutrino Core Reactor Light Antimatter Reactor Propulsion Light Treads Treads Light Treads Leg Improved VSS Leg Wheel Wheel Hover Unit Antigrav System Utility High-capacity Storage Unit Device Coolant Injector Storage High-capacity Storage Unit Processor Improved Target Analyzer Hackware Hacking Suite Protection Hardened Light Armor Plating Weapon Medium Laser Energy Gun Medium Laser Ballistic Gun Improved KE Penetrator Ballistic Cannon Magnetic Acceleration Cannon Launcher Rocket Launcher Slashing Weapon Companion Sword Build | -11 -10 -10 -7 -7 -5 -5 -4 ------- Run | Yrd Mat Sub Rec Scr Fac Upp Fac Slots Evolved 12 | . . . . . 10 . 2 Power . | . . . . . . . . Propulsion 2 | . . . . . 2 . . Utility 8 | . . . . . 6 . 2 Weapon 2 | . . . . . 2 . . Parts Attached 72 | 6 7 2 6 . 35 2 14 Power 6 | 1 . 1 1 . 2 . 1 Engine 4 | 1 . 1 1 . 1 . . Core 1 | . . . . . 1 . . Reactor 1 | . . . . . . . 1 Propulsion 32 | 2 3 . 2 . 17 1 7 Treads 18 | 2 3 . 2 . 5 . 6 Leg 9 | . . . . . 7 1 1 Wheel 4 | . . . . . 4 . . Hover 1 | . . . . . 1 . . Flight . | . . . . . . . . Utility 17 | 1 4 . 2 . 8 1 1 Device 7 | . 1 . . . 6 . . Storage 4 | 1 2 . . . . . 1 Processor 3 | . 1 . . . 1 1 . Hackware 1 | . . . 1 . . . . Protection 2 | . . . 1 . 1 . . Artifact . | . . . . . . . . Weapon 17 | 2 . 1 1 . 8 . 5 Energy Gun 2 | . . 1 1 . . . . Energy Cannon . | . . . . . . . . Ballistic Gun 11 | 2 . . . . 7 . 2 Ballistic Cannon 1 | . . . . . . . 1 Launcher 2 | . . . . . . . 2 Special Weapon . | . . . . . . . . Impact Weapon . | . . . . . . . . Slashing Weapon 1 | . . . . . 1 . . Piercing Weapon . | . . . . . . . . Special Melee Weapon . | . . . . . . . . Unidentified Prototypes 3 | . . . . . 3 . . Parts Lost 47 | . . 3 3 . 25 1 15 Power 4 | . . 1 . . 2 . 1 Propulsion 22 | . . . 2 . 14 1 5 Utility 8 | . . 1 . . 5 . 2 Weapon 13 | . . 1 1 . 4 . 7 Highest Loss Streak 8 | . . 3 3 . 8 1 8 To Critical Strikes . | . . . . . . . . Average Backups 13 | 1 8 11 8 12 17 17 15 Power . | . 1 1 . . . . . Propulsion 3 | . 4 5 3 3 2 4 4 Utility 3 | . . 3 3 4 5 4 3 Weapon 4 | . 2 2 2 3 6 5 4 Tool/Special . | . . . . . . . . Unused Backups 18 | . . . . . 3 . 15 Power 1 | . . . . . . . 1 Propulsion 7 | . . . . . 1 . 6 Utility 3 | . . . . . 1 . 2 Weapon 3 | . . . . . 1 . 2 Tool/Special 4 | . . . . . . . 4 Average Slot Usage (%) 78 | . 95 90 87 85 65 63 49 Engine 9 | . 14 9 14 14 3 5 1 Treads 21 | . 28 28 27 28 14 . 12 Leg 2 | . . . . . 2 22 5 Device 2 | . 3 . . . 6 . . Storage 10 | . 14 14 14 14 5 5 4 Processor 2 | . 6 9 . . 3 5 5 Hackware 7 | . . . 9 14 5 5 2 Energy Gun 6 | . . 4 16 14 . . . Ballistic Gun 9 | . 28 23 2 . 11 11 9 Slashing Weapon 1 | . . . . . 3 5 1 Peak Build Rating 76 | 6 10 9 13 18 76 66 70 Average Rating 27 | 4 8 8 11 15 51 58 52 On Entrance 22 | . 6 9 8 13 18 58 66 Avg Prop Armor Cover (%) 17 | . . . . . 17 . . Naked Turns 74 | . . . . . . . 74 Heaviest Build 86 | 14 49 49 55 52 86 61 74 Greatest Support 111 | 40 40 40 43 43 89 86 111 Greatest Overweight (x) 14 | . 1 1 1 1 14 . 1 Average Overweight (x) . | . . 1 1 1 . . . Largest Inventory Capacity 20 | 8 20 20 20 20 20 20 20 Average Capacity 18 | 6 13 20 20 20 20 20 18 Most Carried 20 | 5 12 12 11 19 20 20 20 Average Carried 13 | 2 8 11 8 13 18 18 17 Final Capacity 20 | 8 20 20 20 20 20 20 5 Final Carried 20 | 2 12 10 8 19 17 20 5 Class Distribution -------------------- 67% | Mutant 13% | Gunner 13% | Scavenger-Mutant 5% | Scavenger-Gunner Dominant Class ---------------- Mutant | -10/Materials Mutant | -10/Subcaves Mutant | -7/Recycling Mutant | -7/Scraptown Gunner | -5/Factory Scavenger-Mutant | -5/Upper Caves Scavenger-Gunner | -4/Factory Resources | -11 -10 -10 -7 -7 -5 -5 -4 ----------- Run | Yrd Mat Sub Rec Scr Fac Upp Fac Matter Collected 3185 | 192 574 68 55 . 1692 23 581 Remotely . | . . . . . . . . Salvage Created 3381 | . 494 102 69 . 1981 205 530 Parts 171 | . 36 11 4 . 84 6 30 Haulers Intercepted 3 | . 2 . . . 1 . . Recyclers Shooed 4 | . . . 1 . 2 . 1 Parts Field Recycled . | . . . . . . . . Retrieved Matter . | . . . . . . . . Parts Self-Destructed 14 | . . 11 . . . 3 . Prevented . | . . . . . . . . Parts Restored . | . . . . . . . . Kills | -11 -10 -10 -7 -7 -5 -5 -4 ------- Run | Yrd Mat Sub Rec Scr Fac Upp Fac Combat Hostiles Destroyed 44 | . 9 4 1 . 18 1 11 Melee 18 | . . . . . 16 1 1 Guns 18 | . 9 4 . . 2 . 3 AOE 7 | . . . . . . . 7 Classes Destroyed 16 | . 5 1 1 . 5 . 4 Worker 3 | . 1 . . . 2 . . Builder 1 | . . . . . . . 1 Tunneler 1 | . . . . . 1 . . Hauler 3 | . 2 . . . 1 . . Recycler 5 | . . . . . 5 . . Operator 2 | . 2 . . . . . . Turret 2 | . . 2 . . . . . Watcher 1 | . . . . . . . 1 Swarmer 10 | . 3 4 . . . . 3 Cutter 1 | . . . . . . . 1 Grunt 16 | . 6 . . . 6 . 4 Sentry 4 | . . . 1 . 3 . . Specialist 2 | . . . . . 2 . . Hunter 5 | . . . . . 2 1 2 Programmer 5 | . . . . . 5 . . Heavy 1 | . . . . . . . 1 Best Kill Streak 9 | . 3 4 1 . 6 1 9 Combat Bots Only 7 | . 3 4 1 . 4 1 7 Max Kills in Single Turn 3 | . 2 2 1 . 1 1 3 Gunslinging 1 | . 1 1 . . . . . Exploded 2 | . . . . . . . 2 Melee 1 | . . . . . 1 1 1 Uniques/NPCs Destroyed . | . . . . . . . . Combat | -11 -10 -10 -7 -7 -5 -5 -4 -------- Run | Yrd Mat Sub Rec Scr Fac Upp Fac Hostile Shots Fired 631 | . 35 77 63 . 251 21 184 Missed 185 | . 6 29 20 . 59 10 61 Hits 446 | . 29 48 43 . 192 11 123 Melee 6 | . . . . . . . 6 Projectile 440 | . 29 48 43 . 192 11 117 AOE 4 | . . . . . . . 4 Critical Strikes 20 | . . . . . 11 . 9 Part Disruptions 3 | . . . . . 3 . . Damage Taken 8637 | . 323 346 328 . 4185 193 3262 Core 2168 | . 66 38 47 . 814 35 1168 Absorbed by Shields . | . . . . . . . . Core Remaining (%) 51 | 100 . . . 39 . 15 . Volleys Fired 114 | 2 39 16 10 . 11 . 36 Largest 4 | 2 2 2 2 . 4 . 4 Hottest 149 | 40 40 70 113 . 149 . 135 Shots Fired 251 | 4 78 32 13 . 34 . 90 Gun 226 | 4 78 32 13 . 34 . 65 Cannon 18 | . . . . . . . 18 Launcher 7 | . . . . . . . 7 Special . | . . . . . . . . Kinetic 222 | 4 78 24 . . 33 . 83 Thermal 22 | . . 8 13 . 1 . . Explosive 5 | . . . . . . . 5 Electromagnetic 2 | . . . . . . . 2 Robot Hit Streak 24 | 1 10 19 24 . 8 . 8 Robot Miss Streak 3 | 1 3 2 3 . 2 . 3 Penetration Max 1 | . . . . . . . 1 Secondary Targets 5 | . 2 3 . . . . . Max Gunslinging Chain 1 | . 1 1 . . . . . Shots Hit Robots 256 | 2 51 26 9 . 101 8 59 Core Hits 120 | 1 23 10 2 . 40 3 41 Critical Kills 4 | . 1 . . . 3 . . Critical Parts Destroyed 2 | . 1 . . . . . 1 Critical Strikes 15 | . 2 1 . . 7 2 3 Burn 1 | . . 1 . . . . . Destroy 6 | . 2 . . . 3 . 1 Blast 2 | . . . . . . . 2 Melee Attacks 111 | . . . . . 100 9 2 Impact . | . . . . . . . . Slashing 111 | . . . . . 100 9 2 Piercing . | . . . . . . . . Sneak Attacks 8 | . . . . . 8 . . Combat Hostiles . | . . . . . . . . Follow-up Attacks 4 | . . . . . 4 . . Damage Inflicted 8084 | 25 675 325 124 . 3990 394 2551 Guns 2703 | 25 649 325 123 . 632 . 949 Cannons 284 | . . . . . . . 284 Explosions 1222 | . . . . . . . 1222 Melee 3821 | . . . . . 3350 394 77 Ramming 54 | . 26 . 1 . 8 . 19 Kinetic 2765 | 25 649 226 . . 632 . 1233 Thermal 588 | . . 99 123 . . . 366 Explosive 662 | . . . . . . . 662 Electromagnetic 194 | . . . . . . . 194 Impact . | . . . . . . . . Slashing 3821 | . . . . . 3350 394 77 Piercing . | . . . . . . . . Highest Corruption 8 | . . . . . 8 5 2 Average Corruption 3 | . . . . . 3 5 1 Corruption Purged 9 | . . . . . 9 . . Corruption Blocked . | . . . . . . . . Effects 37 | . . . . . 23 10 4 Message Errors 6 | . . . . . 4 2 . Matter Fused 13 | . . . . . 7 5 1 Heat Flow Errors 3 | . . . . . 2 1 . Energy Discharges 3 | . . . . . 1 . 2 Data Loss (minor) 5 | . . . . . 4 1 . Data Loss (major) 6 | . . . . . 4 1 1 Alerts 1 | . . . . . 1 . . Overload Shots . | . . . . . . . . Overflow Damage 223 | . . . . . 81 90 52 Projectiles . | . . . . . . . . Explosions 52 | . . . . . . . 52 Melee 171 | . . . . . 81 90 . Knockbacks 5 | . 1 . . . . . 4 Impact 1 | . 1 . . . . . . Kinetic 4 | . . . . . . . 4 Secondary . | . . . . . . . . Self-Inflicted Damage 151 | . . . . . . . 151 Shots 5 | . . . . . . . 5 Rammed 9 | . 4 . 1 . 2 . 2 Targets Rammed 9 | . 4 . 1 . 2 . 2 Kicked . | . . . . . . . . Crushed . | . . . . . . . . Highest Temperature 289 | . 2 8 289 . 172 107 40 Average Temperature 66 | . 2 5 168 . 42 57 14 Received Heat Transfer 1223 | . 123 228 96 . 522 . 254 Siege Activations . | . . . . . . . . Martial Activations . | . . . . . . . . Shielding Activations . | . . . . . . . . Robots Disrupted . | . . . . . . . . Combat Hostiles . | . . . . . . . . Robots Corrupted . | . . . . . . . . Combat Hostiles . | . . . . . . . . Parts Fried 5 | . . . . . . . 5 Impact Corruptions . | . . . . . . . . Robots Melted 1 | . . . 1 . . . . Combat Hostiles 1 | . . . 1 . . . . Parts Melted 1 | . . . 1 . . . . Heat Transferred 903 | . . 370 333 . . . 200 Parts Sabotaged . | . . . . . . . . Parts Stolen . | . . . . . . . . Parts Stripped . | . . . . . . . . Power Chain Reactions . | . . . . . . . . Alert | -11 -10 -10 -7 -7 -5 -5 -4 ------- Run | Yrd Mat Sub Rec Scr Fac Upp Fac Maximum Alert Level 3 | . . . . . 1 . 3 Low Security (%) 68 | 100 100 . 100 . 47 . 38 Level 1 25 | . . . . . 52 . 16 Level 2 5 | . . . . . . . 36 Level 3 1 | . . . . . . . 8 Level 4 . | . . . . . . . . Level 5 . | . . . . . . . . High Security . | . . . . . . . . Max Security . | . . . . . . . . Peak Influence 759 | . 66 . 60 . 362 . 759 Initial 60 | . . . 60 . . . 25 Average 128 | . 15 . 14 . 174 . 317 Influence Increases 2804 | . 282 195 42 . 1057 35 1193 Destroy 0b10 Robot/C 1400 | . 180 120 20 . 520 20 540 Destroy 0b10 Robot/NC 95 | . 25 . . . 45 5 20 Destroy Leader 320 | . 44 . . . 152 10 114 Allied During Kill 156 | . . . . . 98 . 58 Successful Hack 52 | . . . 22 . 18 . 12 Disable Machine 225 | . . . . . 30 . 195 Destroy Structure 181 | . 3 . . . 44 . 134 Partial Spotted 15 | . . . . . 15 . . Lose Combat Pursuer 360 | . 30 75 . . 135 . 120 Influence Decreases 2169 | . 282 70 167 . 726 324 600 Entered New Map 206 | . . . 65 . . 124 17 Time Decay 1261 | . 282 40 80 . 406 190 263 Lost Part 462 | . . 30 22 . 250 10 150 Lost Ally 90 | . . . . . 70 . 20 Purge Threat 150 | . . . . . . . 150 Squads Dispatched 18 | . 3 . . . 10 . 5 Investigation 5 | . 2 . . . 3 . . Extermination 5 | . . . . . 4 . 1 Reinforcement 5 | . 1 . . . 1 . 3 Assault . | . . . . . . . . Garrison 3 | . . . . . 2 . 1 Intercept . | . . . . . . . . Searches Triggered . | . . . . . . . . Construction Impeded 1 | . . . . . . . 1 Haulers Reinforced . | . . . . . . . . Active Scanning Responses . | . . . . . . . . Cargo Convoy Interrupts . | . . . . . . . . Stealth | -11 -10 -10 -7 -7 -5 -5 -4 --------- Run | Yrd Mat Sub Rec Scr Fac Upp Fac Distress Signals 5 | . . . . . 2 . 3 Communications Jammed 42 | . . . . . 42 . . Distress Signals 42 | . . . . . 42 . . Times Spotted 115 | . 20 7 1 . 39 1 47 Peak Tracking Total 11 | . 4 6 1 . 7 1 11 Tactical Retreats 15 | . 2 2 . . 7 . 4 Traps | -11 -10 -10 -7 -7 -5 -5 -4 ------- Run | Yrd Mat Sub Rec Scr Fac Upp Fac Traps Triggered 4 | . 2 . . . 2 . . Indirectly . | . . . . . . . . Trap Hack Attempts . | . . . . . . . . Triggered . | . . . . . . . . Disarmed . | . . . . . . . . Reprogrammed . | . . . . . . . . Reused . | . . . . . . . . Traps Extracted . | . . . . . . . . Installed . | . . . . . . . . Triggered . | . . . . . . . . Machines | -11 -10 -10 -7 -7 -5 -5 -4 ---------- Run | Yrd Mat Sub Rec Scr Fac Upp Fac Machines Disabled 16 | . . 1 . . 2 . 13 Max in Single Turn 7 | . . 1 . . . . 7 Garrison Access 2 | . . . . . 1 . 1 Machines Repaired . | . . . . . . . . Machines Dismantled . | . . . . . . . . Machines Sabotaged . | . . . . . . . . Overloaded Fab Kills . | . . . . . . . . Hacking | -11 -10 -10 -7 -7 -5 -5 -4 --------- Run | Yrd Mat Sub Rec Scr Fac Upp Fac Machines Accessed 28 | . 7 . 4 7 6 1 3 Terminals 12 | . 7 . 2 . 1 . 2 Fabricators . | . . . . . . . . Repair Stations . | . . . . . . . . Recycling Units 4 | . . . 1 . 3 . . Scanalyzers 1 | . . . . . 1 . . Garrison Access 2 | . . . . . 1 . 1 Total Hacks 81 | . 13 . 8 42 10 1 7 Successful 68 | . 8 . 5 42 7 1 5 Failed 13 | . 5 . 3 . 3 . 2 Catastrophic 3 | . 2 . . . . . 1 Database Lockouts . | . . . . . . . . Manual 23 | . 13 . 1 . 5 . 4 Terminals 25 | . 13 . 3 . 3 . 6 Fabricators . | . . . . . . . . Repair Stations . | . . . . . . . . Recycling Units 7 | . . . 3 . 4 . . Scanalyzers 2 | . . . . . 2 . . Garrison Access 2 | . . . . . 1 . 1 Terminal Hacks 52 | . 2 . 3 42 1 1 3 Record 43 | . . . 2 41 . . . Prototype ID Bank 1 | . . . 1 . . . . Open Door 2 | . . . . 1 . 1 . Branch Access Points 1 | . . . . . 1 . . Recycling Unit Index 1 | . . . . . . . 1 Unreport Threat 1 | . . . . . . . 1 Locate Traps 1 | . . . . . . . 1 Recall Investigation 1 | . 1 . . . . . . Recall Reinforcements 1 | . 1 . . . . . . Fabricator Hacks . | . . . . . . . . Repair Station Hacks . | . . . . . . . . Recycling Unit Hacks 1 | . . . 1 . . . . Report Inventory 1 | . . . 1 . . . . Scanalyzer 1 | . . . . . 1 . . Retrieve Study 1 | . . . . . 1 . . Garrison Access Hacks 2 | . . . . . 1 . 1 Seal Access 2 | . . . . . 1 . 1 Unauthorized Hacks 12 | . 6 . 1 . 4 . 1 Terminals 9 | . 6 . 1 . 1 . 1 Assimilate 1 | . 1 . . . . . . Botnet 7 | . 4 . 1 . 1 . 1 Operators 1 | . 1 . . . . . . Fabricators . | . . . . . . . . Repair Stations . | . . . . . . . . Recycling Units 3 | . . . . . 3 . . Fedlink 3 | . . . . . 3 . . Scanalyzers . | . . . . . . . . Garrison Access . | . . . . . . . . Data Cores Recovered . | . . . . . . . . Used . | . . . . . . . . Hacking Detections 11 | . 4 . 2 . 3 . 2 Full Trace Events 1 | . 1 . . . . . . Feedback Events . | . . . . . . . . Feedback Blocked . | . . . . . . . . Robot Schematics Acquired . | . . . . . . . . Robots Built . | . . . . . . . . Authchips . | . . . . . . . . Time . | . . . . . . . . Total Robot Build Rating . | . . . . . . . . Part Schematics Acquired . | . . . . . . . . Parts Built . | . . . . . . . . Authchips . | . . . . . . . . Time . | . . . . . . . . Total Part Build Rating . | . . . . . . . . Part Studies Acquired 1 | . . . . . 1 . . Parts Repaired . | . . . . . . . . Time . | . . . . . . . . Parts Recycled . | . . . . . . . . Recycled Matter . | . . . . . . . . Retrieved Matter . | . . . . . . . . Retrieved Components . | . . . . . . . . Parts Scanalyzed . | . . . . . . . . Part Schematics Acquired . | . . . . . . . . Parts Damaged . | . . . . . . . . Bothacking | -11 -10 -10 -7 -7 -5 -5 -4 ------------ Run | Yrd Mat Sub Rec Scr Fac Upp Fac Used RIF Installer . | . . . . . . . . Robots Hacked . | . . . . . . . . Non-combat . | . . . . . . . . Combat . | . . . . . . . . Robot Hacks Applied . | . . . . . . . . Relay Couplers Released . | . . . . . . . . Fabnet Peak Effective % . | . . . . . . . . Robots Rewired . | . . . . . . . . Allies Hacked 1 | . . . . . 1 . . Hacks Repelled . | . . . . . . . . Allies | -11 -10 -10 -7 -7 -5 -5 -4 -------- Run | Yrd Mat Sub Rec Scr Fac Upp Fac Total Allies 6 | . . . . . 5 1 . Largest Group 5 | . . . . . 5 1 1 Highest-Rated Group 241 | . . . . . 241 146 146 Highest-Rated Ally 146 | . . . . . 50 146 146 Initial UFD Resources 58 | . . . . . 39 55 58 Total Orders 1 | . . . . . 1 . . EXPLORE 1 | . . . . . 1 . . Ally Attacks 142 | . . . . . 90 . 52 Total Damage 4560 | . . . . . 1314 . 3246 Kills 26 | . . . . . 8 . 18 Allies Corrupted 2 | . . . . . 2 . . Allies Melted . | . . . . . . . . Intel | -11 -10 -10 -7 -7 -5 -5 -4 ------- Run | Yrd Mat Sub Rec Scr Fac Upp Fac Active Infowar (turns) 502 | . . . . . 502 . . Jamming 502 | . . . . . 502 . . Robot Analysis Total . | . . . . . . . . Derelict Logs Recovered 1 | . . . . . . 1 . Drone Launches 2 | . . . . . 2 . . Drone Recoveries . | . . . . . . . . Exploration | -11 -10 -10 -7 -7 -5 -5 -4 ------------- Run | Yrd Mat Sub Rec Scr Fac Upp Fac Turns Passed 7800 | 68 1433 142 310 2912 1940 380 615 Spaces Moved 3688 | 43 663 39 115 1210 893 304 421 Core 163 | 17 . . . . 3 . 143 Treads 2863 | 26 663 39 115 1210 634 . 176 Legs 593 | . . . . . 187 304 102 Wheels 63 | . . . . . 63 . . Hover 6 | . . . . . 6 . . Flight . | . . . . . . . . Fastest Speed 50 | 50 160 240 240 240 95 110 50 Average Speed 183 | 116 180 240 240 240 160 111 108 Slowest Speed 750 | 160 240 240 240 240 750 112 180 Overloaded Moves . | . . . . . . . . Propulsion Burnouts . | . . . . . . . . Robots Hopped . | . . . . . . . . Potential Cave-ins . | . . . . . . . . Cave-ins Triggered . | . . . . . . . . Exploration Rate (%) 37 | 3 96 2 30 78 29 40 18 Regions Visited 7 Branch Regions 4 Pre-discovered Areas 1 | . . . . . 1 . . Known Exits Taken 1 | . . . . . 1 . . Unknown Exits Taken 6 | 1 1 1 1 1 . 1 . Scrap Searched 6 | . . 1 . 4 . 1 . Spaces Dug . | . . . . . . . . Terrain Destroyed 34 | . . . . . 2 . 32 Melee . | . . . . . . . . Projectile 5 | . . . . . 2 . 3 AOE 29 | . . . . . . . 29 Terrain Rammed . | . . . . . . . . Walls Destroyed . | . . . . . . . . Machines Disabled . | . . . . . . . . Actions | -11 -10 -10 -7 -7 -5 -5 -4 --------- Run | Yrd Mat Sub Rec Scr Fac Upp Fac Total 4358 | 57 819 56 135 1219 1232 329 511 Wait 270 | . 90 . 1 . 159 10 10 Move 3681 | 42 662 38 114 1209 892 303 421 Hop . | . . . . . . . . Pick Up 68 | 7 11 . 1 10 24 4 11 Fast Attach 21 | 1 1 . 1 . 15 2 1 Attach 40 | 5 1 2 2 . 20 . 10 Detach 3 | . 1 . . . 1 . 1 Swap 17 | . 5 . 3 . 2 . 7 Drop 26 | . 5 . 2 . 8 1 10 Fire 114 | 2 39 16 10 . 11 . 36 Melee 107 | . . . . . 96 9 2 Ram 2 | . . . . . . . 2 Kick . | . . . . . . . . Crush 7 | . 4 . 1 . 2 . . Escape Stasis . | . . . . . . . . Rewire 2 | . . . . . 2 . . Trap . | . . . . . . . . Miscellaneous . | . . . . . . . . Route ------- -11/Scrapyard -10/Materials (discovered 6 exits: [*Mat x3] / [*Min x2] / [*Sub]) -10/Subcaves -7/Recycling -7/Scraptown (discovered 2 exits: *Fac x2) -5/Factory (discovered 4 exits: *Upp x2 / Ext x2) -5/Upper Caves -4/Factory History --------- Turn | Location | Event 7 | -11/Scrapyard | Discovered new exit (range 16) 69 | -11/Scrapyard | Entered Materials 227 | -10/Materials | Discovered new exit (range 6) 268 | -10/Materials | Discovered new exit (range 15) 317 | -10/Materials | Build established: Mutant 392 | -10/Materials | Discovered new exit (range 5) 531 | -10/Materials | Discovered new exit (range 4) 918 | -10/Materials | Discovered new exit (range 13) 1466 | -10/Materials | Discovered new exit (range 9) 1502 | -10/Materials | Entered Subcaves 1585 | -10/Subcaves | Discovered new exit (range 8) 1626 | -10/Subcaves | Lost 3 parts (1p1u1w) 1644 | -10/Subcaves | Entered Recycling 1751 | -7/Recycling | Core integrity fell below 50% 1787 | -7/Recycling | Lost 3 parts (2n1w) 1892 | -7/Recycling | Scanned before Scraplab entrance 1928 | -7/Recycling | Entered Scraplab 1947 | -7/Recycling | Discovered new exit (range 3) 1954 | -7/Recycling | Entered Scraptown 2397 | -7/Scraptown | Discovered new exit (range 5) 2579 | -7/Scraptown | Visited Cyclists 2702 | -7/Scraptown | Visited UFD Registry 2702 | -7/Scraptown | Registered with UFD as "Novaface" 2800 | -7/Scraptown | Entered Cyclist Reading Room 2884 | -7/Scraptown | Visited Bundlers 3007 | -7/Scraptown | Visited Symbiants 3151 | -7/Scraptown | Visited IN-MT5's Study 3690 | -7/Scraptown | Visited Derelict Rescue Squad 3704 | -7/Scraptown | Found DRS Beacon 3753 | -7/Scraptown | Visited Sword Containment 3777 | -7/Scraptown | Found Prototype Slashing Weapon 3845 | -7/Scraptown | Visited A0-MCA Data Center 3860 | -7/Scraptown | Given a C+ rating by A0-MCA 3865 | -7/Scraptown | Found A0-MCA's Component Scanner 3933 | -7/Scraptown | Visited Scrapoid Pod Storage 3945 | -7/Scraptown | Found Scrapoid Pod 3984 | -7/Scraptown | Visited Junk Repository 4549 | -7/Scraptown | Visited Supply Room 4583 | -7/Scraptown | Visited Chapter 10 4710 | -7/Scraptown | Met Optimus 4710 | -7/Scraptown | Accepted into 0bPrime 4861 | -7/Scraptown | Discovered new exit (range 3) 4866 | -7/Scraptown | Entered Factory 4866 | -5/Factory | Evolved 10 slots: Propulsion x2, Utility x6, Weapon x2 4908 | -5/Factory | Loaded intel: 8 recycling unit locations 5065 | -5/Factory | Identified exit to Upper Caves 5065 | -5/Factory | Identified exit to Extension 5270 | -5/Factory | Build established: Gunner 5292 | -5/Factory | Identified Companion Sword 5470 | -5/Factory | Scrapoid Pod released 05F05-D (x5) 5483 | -5/Factory | Garrison activated, responded to threat 6018 | -5/Factory | P-70 Sage assimilated allied 05F02-D 6057 | -5/Factory | Lost 3 allies 6106 | -5/Factory | Lost 8 parts (5n1u2w) 6165 | -5/Factory | Lost 5 parts (1p2n2u) 6331 | -5/Factory | Core integrity fell below 50% 6446 | -5/Factory | Lost 4 parts (3n1u) 6512 | -5/Factory | Build established: Scavenger-Mutant 6638 | -5/Factory | Lost 4 parts (1p2n1w) 6669 | -5/Factory | Learned location of Protoforge (-3) 6768 | -5/Factory | Core integrity fell below 20% 6806 | -5/Factory | Entered Upper Caves 6973 | -5/Upper Caves | Learned Factory stockpile data 7182 | -5/Upper Caves | NK-0LA showed up to help 7184 | -5/Upper Caves | NK-0LA revealed a hidden path 7186 | -5/Upper Caves | Entered Factory 7186 | -4/Factory | Accompanied by 1 ally (NK-0LA) 7186 | -4/Factory | Evolved 2 slots: Utility x2 7366 | -4/Factory | Lost 5 parts (3n1u1w) 7421 | -4/Factory | Garrison activated, responded to threat 7523 | -4/Factory | Spotted B-86 Titan 7535 | -4/Factory | Allies destroyed B-86 Titan 7624 | -4/Factory | Build established: Scavenger-Gunner 7727 | -4/Factory | Core integrity fell below 50% 7727 | -4/Factory | Released all parts (5) 7737 | -4/Factory | Destroyed 7 combat bots 7755 | -4/Factory | Lost 8 parts (1p2n5w) 7789 | -4/Factory | Core integrity fell below 20% 7801 | -4/Factory | Destroyed by G-67 Veteran with Plasma Rifle Last Messages --------------- 07745_ Acquired Adv. Datajack. 07751_ Slug penetrates Wall. 07752_ Slammed into Y-64 Sentinel. 07754_ Slug penetrates Wall. 07760_ Penetrated by Slug. 07766_ Connecting with Terminal... >>Trojan(Botnet) Trojan loaded successfully. Testing... Terminal linked with 0 systems. Awaiting botnet instructions. >>Alert(Purge) Purged threat record, alert level lowered. >>Index(Recycling Units) Found 8 recycling units. Downloaded coordinate data. 07769_ System corrupted: Substantial component data lost. 07772_ Slug penetrates Terminal. 07796_ Penetrated by Slug. Map ----- +----------------------------------------------------+ | ?????????????????????????????????????????????????? | | ?????????????????????????????????????????????????? | | ?????????????????????????????????????????????????? | | ?????????????????????????????????????????????????? | | ?????????????????????????????????????????????????? | | ?????????????????????????????????????????????? ??? | | ????????????????????????????????????????????? ???? | | ??????????????????????????################## ????? | | ??????????????????????????# # ?????? | | ??????????????????????????# """" # ??????? | | ??????????????????????????# """" # ???????? | | ??????????????????????????# """" # #????????? | | ??????????????????????????# """" # #????????? | | ??????????????????????????# """" # #????????? | | ??????????????????????????# """" # #????????? | | ??????????????????????????# / #????????? | | ??????????????????????????#! # #????????? | | ??????????????????????????########## #????????? | | ???????????????????????????????????# #????????? | | ???????????????????????????????????# #????????? | | ???????????????????????????????????# #????????? | | ???????????????????????????????????# #????????? | | ??????????????????????????????????## #????????? | | ??????????????????????????????????# ########## | | ?????????????????##+############### | | ??????????# @ ssss Y | | ??????????# s """"" | | ??????????+ g ""T"" | | ??????????? ############## | | ??????????? ?????????????# | | !??????????? ####+#??????????????# = | | ???????????? ??????????????????????#+### | | ????????????????????????????????????????# | | ????????????????????????????????????????## ##### | | ?????????????????????????????????????????# #?# | | ?????????????????????????????????????????# #?# | | ?????????????????????????????????????????# #?# | | ???????????????????#/??????????????????### ### | | ?????????????????### ##########????????# # | | ???????????????? #????????# # | | ????????????????? #????????# ### | | ??????????????????? #????????+ #?? | | ????????????????????? ########## #?? | | ??????????????????????? # # ! #?? | | ????????????????????????# #! """ # #?? | | ????????????????????????# # """ ####%####?? | | ????????????????????????# # """ #??#%#????? | | ????????????????????????# + #??# #????? | | ????????????????????????# # """ #??# #????? | | ????????????????????????# # """ #### #????? | +----------------------------------------------------+ Best States ------------- Heat Dissipation 43 Coolant Potential 65 Energy Generation 21 Energy Capacity 450 Matter Stores 300 Matter Capacity 300 Sight Range 16 Terrain Scan Density 10 Jamming Range 14 Armor Coverage 150 Resistance: EM 15 Evasion (%) 70 Targeting Accuracy 5 Target Analysis 11 Recoil Reduction 4 Offensive Hacking 10 Item Schematics ----------------- None Robot Schematics ------------------ None Fabricated ------------ Nothing Repaired ---------- Nothing Studied --------- Gauss Rifle | -5/Factory | Hacked Alien Tech Used ----------------- None Achievements -------------- Bob, First Of His Name Challenges ------------ None Game ------ Seed MetafiberAblativeArchive Manual? 0 Play Time 00:49:16 Cumulative 310.3 hours Start 2026.09.21 @ 16:08:29 End 2026.09.21 @ 16:59:04 Sessions 1 Manual Loads 0 Difficulty Rogue Special Mode None Game No. 335 Rogue 335 Adventurer 0 Explorer 0 Win Type - Total 3 Types 3/0/0/0/0/0/0/0/0/0 Lore% 46 Gallery% 59 Achievement% 45 Wizard Run 0 Options --------- Layout 1 ASCII 0 Keyboard 0 Movement Numpad Keybinds 0 Fullscreen 2 Font 24/Smallcaps Map View 50x35 Zoom Use 0% Tactical HUD 1 Map Filters NONE Filters NONE Steam 1 RUN: f5531dee-724c-45c3-ab38-ba5c63a2dbe1